bitfinex-derivatives/quotes_BTCF0:USTF0_20250913
["timestamp","ask_amount","ask_price","bid_price","bid_amount"]
[1757743191838,0.002,115770.0,115760.0,1.92007938]
[1757743192937,0.002,115770.0,115760.0,2.00640898]
[1757743193146,0.001,115770.0,115760.0,2.00640898]
[1757743194248,0.001,115770.0,115760.0,2.25640898]
[1757743195058,0.001,115770.0,115760.0,2.26486982]
[1757743196440,0.001,115770.0,115760.0,2.29424303]
[1757743196640,0.001,115770.0,115760.0,2.39424303]
[1757743200047,0.001,115770.0,115760.0,2.75504303]
[1757743200946,0.01328,115790.0,115760.0,2.75504303]
[1757743201147,0.12815034,115790.0,115780.0,0.89883506]
[1757743201337,0.12815034,115790.0,115780.0,1.68139506]
[1757743203049,0.12815034,115790.0,115780.0,1.68039506]
[1757743203953,0.12915034,115790.0,115780.0,1.68039506]
[1757743205152,0.04053281,115790.0,115780.0,1.68039506]
[1757743205454,0.12915034,115790.0,115780.0,1.68039506]
[1757743206850,0.04053281,115790.0,115780.0,1.68039506]
[1757743207050,0.12915034,115790.0,115780.0,1.99901259]
[1757743207249,0.12915034,115790.0,115780.0,1.73316]
[1757743207455,0.12915034,115790.0,115780.0,1.99901259]
[1757743208655,0.12915034,115790.0,115780.0,1.91039506]
[1757743210857,0.12915034,115790.0,115780.0,0.89783506]
[1757743211055,0.12915034,115790.0,115780.0,1.68027506]
[1757743214161,0.04053281,115790.0,115780.0,1.90027506]
[1757743214361,0.12915034,115790.0,115780.0,1.68027506]
[1757743216361,0.04053281,115790.0,115780.0,1.88027506]
[1757743216560,0.12915034,115790.0,115780.0,1.68027506]
[1757743216762,0.21776787,115790.0,115780.0,1.68027506]
[1757743216963,0.23895787,115790.0,115780.0,0.89783506]
[1757743217165,0.23895787,115790.0,115780.0,0.7206]
[1757743217360,0.23895787,115790.0,115780.0,1.68023506]
[1757743217767,0.23895787,115790.0,115780.0,1.59161753]
[1757743220765,0.15034034,115790.0,115780.0,0.89783506]
[1757743220968,0.15034034,115790.0,115780.0,1.68023506]
[1757743221265,0.18141612,115790.0,115780.0,1.68023506]
[1757743223467,0.27003365,115790.0,115780.0,1.68023506]
[1757743224868,0.18141612,115790.0,115780.0,1.68023506]
[1757743225075,0.18141612,115790.0,115780.0,1.69785297]
[1757743225872,0.09279859,115790.0,115780.0,1.69785297]
[1757743226073,0.18141612,115790.0,115780.0,1.69785297]
[1757743226372,0.27003365,115790.0,115780.0,1.69785297]
[1757743227368,0.27003365,115790.0,115780.0,1.69777297]
[1757743227560,0.18141612,115790.0,115780.0,1.69777297]
[1757743227762,0.27003365,115790.0,115780.0,1.69777297]
[1757743228173,0.18141612,115790.0,115780.0,1.69777297]
[1757743229263,0.15034034,115790.0,115780.0,1.69777297]
[1757743230274,0.15034034,115790.0,115780.0,1.93777297]
[1757743230474,0.15034034,115790.0,115780.0,1.69777297]
[1757743234880,0.15034034,115790.0,115780.0,1.52053791]
[1757743235085,0.06172281,115790.0,115780.0,1.89777297]
[1757743235289,0.15034034,115790.0,115780.0,1.69777297]
[1757743238490,0.23895787,115790.0,115780.0,1.60911544]
[1757743240694,0.23895787,115790.0,115780.0,1.52049791]
[1757743241096,0.23895787,115790.0,115780.0,1.60911544]
[1757743243994,0.23895787,115790.0,115780.0,1.24931544]
[1757743244195,0.23895787,115790.0,115780.0,1.33793297]
[1757743246582,0.15034034,115790.0,115780.0,1.33793297]
[1757743251198,0.06172281,115790.0,115780.0,1.33793297]
[1757743251395,0.02725281,115790.0,115780.0,1.4265505]
[1757743251592,0.01328,115800.0,115780.0,2.1065505]
[1757743251899,0.01328,115800.0,115790.0,0.62665259]
[1757743252090,0.01328,115800.0,115790.0,1.23665259]
[1757743253894,0.01528,115800.0,115790.0,1.23665259]
[1757743256399,0.01528,115800.0,115790.0,1.08891277]
[1757743257899,0.002,115800.0,115790.0,1.20702554]
[1757743258800,0.002,115800.0,115790.0,1.08891277]
[1757743262192,0.002,115800.0,115790.0,1.20702554]
[1757743262592,0.002,115800.0,115790.0,1.08891277]
[1757743264203,0.002,115800.0,115790.0,1.20702554]
[1757743270804,0.002,115800.0,115790.0,1.29333284]
[1757743270993,0.002,115800.0,115790.0,1.20702554]
[1757743276713,0.002,115800.0,115790.0,1.29333284]
[1757743278609,0.002,115800.0,115790.0,1.39333284]
[1757743284218,0.01345,115820.0,115790.0,1.39333284]
[1757743284418,0.03949219,115820.0,115810.0,0.83971277]
[1757743284610,0.03949219,115820.0,115810.0,1.39971277]
[1757743286006,0.02904219,115820.0,115810.0,1.39971277]
[1757743288015,0.04179219,115820.0,115810.0,1.39971277]
[1757743292112,0.02904219,115820.0,115810.0,1.51782554]
[1757743292314,0.003,115820.0,115810.0,1.51782554]
[1757743293624,0.02903199,115820.0,115810.0,1.51782554]
[1757743294623,0.003,115820.0,115810.0,1.51782554]
[1757743305531,0.02927706,115820.0,115810.0,1.51782554]
[1757743318353,0.02927706,115820.0,115810.0,1.54722288]
[1757743327459,0.02927706,115820.0,115810.0,1.64722288]
[1757743330259,0.003,115820.0,115810.0,1.64722288]
[1757743332357,0.02923069,115820.0,115810.0,1.64722288]
[1757743333061,0.003,115820.0,115810.0,1.64722288]
[1757743335066,0.003,115820.0,115810.0,1.73351538]
[1757743337369,0.0197667,115830.0,115810.0,1.73351538]
[1757743337568,0.0197667,115830.0,115820.0,1.40786288]
[1757743337767,0.0197667,115830.0,115820.0,2.02786288]
[1757743337969,0.0197667,115830.0,115820.0,2.12786288]
[1757743338267,0.0134,115840.0,115820.0,2.12786288]
[1757743338468,0.0134,115840.0,115830.0,0.44934096]
[1757743338663,0.0396083,115840.0,115830.0,1.19342288]
[1757743339568,0.0302083,115840.0,115830.0,1.19342288]
[1757743340671,0.004,115840.0,115830.0,1.19342288]
[1757743340870,0.03020064,115840.0,115830.0,1.19342288]
[1757743341358,0.0134,115850.0,115830.0,1.19342288]
[1757743341563,0.06267662,115850.0,115840.0,1.40782288]
[1757743341764,0.06267662,115850.0,115840.0,2.04533369]
[1757743347177,0.15121758,115850.0,115840.0,2.04533369]
[1757743347675,0.15121758,115850.0,115840.0,1.61679273]
[1757743347867,0.06267662,115850.0,115840.0,1.61679273]
[1757743348067,0.15121758,115850.0,115840.0,1.61679273]
[1757743348473,0.15121758,115850.0,115840.0,1.70533369]
[1757743351276,0.06267662,115850.0,115840.0,1.70533369]
[1757743351571,0.15121758,115850.0,115840.0,1.70533369]
[1757743351775,0.06267662,115850.0,115840.0,1.70533369]
[1757743355772,0.06267662,115850.0,115840.0,1.43971081]
[1757743355977,0.06267662,115850.0,115840.0,1.70533369]
[1757743361484,0.06267662,115850.0,115840.0,2.03533369]
[1757743364084,0.03959662,115850.0,115840.0,2.03533369]
[1757743365087,0.03959662,115850.0,115840.0,1.76971081]
[1757743365286,0.03959662,115850.0,115840.0,2.03533369]
[1757743369290,0.03961801,115850.0,115840.0,2.03533369]
[1757743375596,0.03961801,115850.0,115840.0,2.04398719]
[1757743375899,0.03961801,115850.0,115840.0,2.03533369]
[1757743380396,0.03961801,115850.0,115840.0,2.00573251]
[1757743385601,0.03961801,115850.0,115840.0,1.76971081]
[1757743385798,0.03961801,115850.0,115840.0,2.00573251]
[1757743390400,0.02621801,115850.0,115840.0,2.00573251]
[1757743393702,0.04000801,115850.0,115840.0,2.00573251]
[1757743394008,0.04000801,115850.0,115840.0,1.76971081]
[1757743394207,0.04000801,115850.0,115840.0,2.00573251]
[1757743396706,0.04000801,115850.0,115840.0,2.36653251]
[1757743399202,0.01379,115850.0,115840.0,2.36653251]
[1757743399706,0.01379,115850.0,115840.0,4.02417251]
[1757743402505,0.03998372,115850.0,115840.0,4.02417251]
[1757743402908,0.02619372,115850.0,115840.0,4.02417251]
[1757743405308,0.02619372,115850.0,115840.0,4.14218336]
[1757743405514,0.02619372,115850.0,115840.0,4.24218336]
[1757743406614,0.01275,115860.0,115840.0,4.32845356]
[1757743406810,0.03894337,115860.0,115850.0,0.5968217]
[1757743407005,0.02619337,115860.0,115850.0,1.1868217]
[1757743411624,0.03965337,115860.0,115850.0,1.1868217]
[1757743413223,0.03965337,115860.0,115850.0,1.84953085]
[1757743415626,0.03965337,115860.0,115850.0,1.73152]
[1757743415927,0.03965337,115860.0,115850.0,1.84953085]
[1757743422527,0.02619337,115860.0,115850.0,1.9675417]
[1757743422831,0.01394,115870.0,115850.0,1.9675417]
[1757743423032,0.04011979,115870.0,115860.0,0.5968217]
[1757743423232,0.04011979,115870.0,115860.0,1.1868217]
[1757743426337,0.04011979,115870.0,115860.0,1.2550563]
[1757743428336,0.01394,115870.0,115860.0,1.2550563]
[1757743428534,0.01394,115880.0,115860.0,1.2550563]
[1757743428733,0.04046047,115880.0,115870.0,1.25941085]
[1757743430532,0.01394,115880.0,115870.0,1.25941085]
[1757743430838,0.04045893,115880.0,115870.0,1.25941085]
[1757743431027,0.04045893,115880.0,115870.0,1.45941085]
[1757743431232,0.04045893,115880.0,115870.0,1.25941085]
[1757743431438,0.04045893,115880.0,115870.0,1.48941085]
[1757743431641,0.04045893,115880.0,115870.0,1.25941085]
[1757743432639,0.04045893,115880.0,115870.0,1.1414]
[1757743432840,0.04045893,115880.0,115870.0,1.25941085]
[1757743433835,0.04045893,115880.0,115870.0,1.47941085]
[1757743434136,0.04045893,115880.0,115870.0,1.25941085]
[1757743434546,0.04045893,115880.0,115870.0,1.47941085]
[1757743434845,0.04045893,115880.0,115870.0,1.25941085]
[1757743442341,0.12893175,115880.0,115870.0,1.31834564]
[1757743443153,0.04045893,115880.0,115870.0,1.31834564]
[1757743447542,0.04045893,115880.0,115870.0,1.40681846]
[1757743447743,0.04046972,115880.0,115870.0,1.40681846]
[1757743451753,0.04046972,115880.0,115870.0,1.41542199]
[1757743455257,0.06208972,115880.0,115870.0,0.3608]
[1757743455461,0.32750818,115880.0,115870.0,1.142]
[1757743455660,0.23903536,115880.0,115870.0,1.142]
[1757743455863,0.23903536,115880.0,115870.0,1.23047282]
[1757743456060,0.15056254,115880.0,115870.0,1.23047282]
[1757743456256,0.15056254,115880.0,115870.0,1.142]
[1757743456656,0.15056254,115880.0,115870.0,1.31894564]
[1757743458163,0.15056254,115880.0,115870.0,1.142]
[1757743458367,0.15056254,115880.0,115870.0,1.31894564]
[1757743459163,0.06208972,115880.0,115870.0,1.31894564]
[1757743459463,0.15056254,115880.0,115870.0,1.31894564]
[1757743459759,0.15056254,115880.0,115870.0,1.142]
[1757743459956,0.15056254,115880.0,115870.0,1.31894564]
[1757743460358,0.06208972,115880.0,115870.0,1.142]
[1757743460566,0.06208972,115880.0,115870.0,1.31894564]
[1757743461063,0.15056254,115880.0,115870.0,1.31894564]
[1757743461460,0.06208972,115880.0,115870.0,1.31894564]
[1757743461759,0.15056254,115880.0,115870.0,1.31894564]
[1757743461955,0.06208972,115880.0,115870.0,1.31894564]
[1757743462161,0.06208972,115880.0,115870.0,1.40741846]
[1757743463565,0.15056254,115880.0,115870.0,1.31894564]
[1757743464963,0.06208972,115880.0,115870.0,1.31894564]
[1757743465160,0.06208972,115880.0,115870.0,1.40741846]
[1757743467675,0.15056254,115880.0,115870.0,1.142]
[1757743467874,0.06208972,115880.0,115870.0,1.142]
[1757743468074,0.15056254,115880.0,115870.0,1.31894564]
[1757743470888,0.06208972,115880.0,115870.0,1.31894564]
[1757743471278,0.15056254,115880.0,115870.0,1.31894564]
[1757743472285,0.15056254,115880.0,115870.0,1.40741846]
[1757743472482,0.15056254,115880.0,115870.0,1.31894564]
[1757743478299,0.06208972,115880.0,115870.0,1.31894564]
[1757743478598,0.15056254,115880.0,115870.0,1.31894564]
[1757743478997,0.06208972,115880.0,115870.0,1.31894564]
[1757743479298,0.15056254,115880.0,115870.0,1.31894564]
[1757743482205,0.06208972,115880.0,115870.0,1.31894564]
[1757743482502,0.15056254,115880.0,115870.0,1.31894564]
[1757743485904,0.15056254,115880.0,115870.0,1.142]
[1757743486107,0.15056254,115880.0,115870.0,1.31894564]
[1757743488308,0.15056254,115880.0,115870.0,1.33194179]
[1757743489310,0.15056254,115880.0,115870.0,1.15499615]
[1757743489511,0.15056254,115880.0,115870.0,1.33194179]
[1757743490006,0.06208972,115880.0,115870.0,1.33194179]
[1757743490202,0.15056254,115880.0,115870.0,1.33194179]
[1757743490510,0.15056254,115880.0,115870.0,0.55074179]
[1757743490710,0.15056254,115880.0,115870.0,1.34478179]
[1757743491004,0.15056254,115880.0,115870.0,1.34474179]
[1757743496614,0.15056254,115880.0,115870.0,1.16779615]
[1757743496816,0.15056254,115880.0,115870.0,1.34474179]
[1757743498411,0.15056254,115880.0,115870.0,0.37379615]
[1757743498607,0.15056254,115880.0,115870.0,1.34470179]
[1757743498913,0.15056254,115880.0,115870.0,1.25622897]
[1757743499307,0.15056254,115880.0,115870.0,1.34470179]
[1757743500212,0.15056254,115880.0,115870.0,0.55074179]
[1757743500517,0.15056254,115880.0,115870.0,1.34470179]
[1757743500816,0.06208972,115880.0,115870.0,1.34470179]
[1757743501016,0.15056254,115880.0,115870.0,1.34470179]
[1757743501515,0.15056254,115880.0,115870.0,1.16775615]
[1757743501717,0.15056254,115880.0,115870.0,1.34470179]
[1757743502718,0.06208972,115880.0,115870.0,1.16775615]
[1757743502917,0.15056254,115880.0,115870.0,1.34470179]
[1757743503418,0.06208972,115880.0,115870.0,1.34470179]
[1757743503820,0.15056254,115880.0,115870.0,1.34470179]
[1757743504417,0.06208972,115880.0,115870.0,1.28572044]
[1757743514227,0.06208972,115880.0,115870.0,1.27272429]
[1757743514526,0.06208972,115880.0,115870.0,1.28540957]
[1757743518429,0.06208972,115880.0,115870.0,1.27272429]
[1757743521927,0.06208972,115880.0,115870.0,0.47876429]
[1757743522130,0.06208972,115880.0,115870.0,1.27036429]
[1757743533556,0.06208972,115880.0,115870.0,1.1524]
[1757743533852,0.06208972,115880.0,115870.0,1.27036429]
[1757743534251,0.5480183,115880.0,115870.0,0.3608]
[1757743534554,0.5480183,115880.0,115870.0,1.15152]
[1757743536955,0.43005401,115880.0,115870.0,1.15152]
[1757743537156,0.43005401,115880.0,115870.0,0.3608]
[1757743537357,0.43005401,115880.0,115870.0,1.15156]
[1757743537657,0.43005401,115880.0,115870.0,0.3608]
[1757743537856,0.43005401,115880.0,115870.0,1.1514]
[1757743539258,0.18005401,115880.0,115870.0,1.1514]
[1757743541662,0.03635,115870.0,115860.0,0.3608]
[1757743541862,0.20126136,115870.0,115860.0,1.15116]
[1757743542068,0.20126136,115870.0,115860.0,1.26912429]
[1757743542360,0.20126136,115870.0,115860.0,1.15116]
[1757743542657,0.20126136,115870.0,115860.0,0.3608]
[1757743542862,0.20126136,115870.0,115860.0,1.15108]
[1757743543059,0.20126136,115870.0,115860.0,0.3608]
[1757743543264,0.20126136,115870.0,115860.0,1.15244]
[1757743543461,0.20126136,115870.0,115860.0,0.3608]
[1757743543462,0.51882096,115870.0,115860.0,0.3608]
[1757743543762,0.01316,115860.0,115850.0,1.6743901]
[1757743543961,0.13112429,115860.0,115850.0,2.4659501]
[1757743544264,0.15765401,115860.0,115850.0,2.4659501]
[1757743545156,0.15765401,115860.0,115850.0,2.58391439]
[1757743545352,0.03968972,115860.0,115850.0,2.58391439]
[1757743546965,0.03968972,115860.0,115850.0,2.94471439]
[1757743547264,0.03968972,115860.0,115850.0,2.8267501]
[1757743547463,0.03968972,115860.0,115850.0,2.94471439]
[1757743549763,0.03968972,115860.0,115850.0,2.15315439]
[1757743549965,0.15765401,115860.0,115850.0,2.8261501]
[1757743550659,0.2756183,115860.0,115850.0,2.8261501]
[1757743550860,0.15730785,115860.0,115850.0,2.8261501]
[1757743551467,0.27527214,115860.0,115850.0,2.8261501]
[1757743555172,0.27527214,115860.0,115850.0,2.018]
[1757743555370,0.27527214,115860.0,115850.0,2.44768]
[1757743556669,0.01298,115840.0,115830.0,0.3608]
[1757743556974,0.17891996,115840.0,115830.0,1.34104]
[1757743557368,0.15274429,115840.0,115830.0,1.34104]
[1757743557568,0.17891488,115840.0,115830.0,1.34104]
[1757743558672,0.17891488,115840.0,115830.0,1.45900429]
[1757743558877,0.17891488,115840.0,115830.0,1.46100429]
[1757743559170,0.06095059,115840.0,115830.0,1.46100429]
[1757743560878,0.17891488,115840.0,115830.0,1.46100429]
[1757743562678,0.18736705,115840.0,115830.0,1.46100429]
[1757743562876,0.06940276,115840.0,115830.0,1.46100429]
[1757743563081,0.18736705,115840.0,115830.0,0.5528]
[1757743563278,0.18736705,115840.0,115830.0,1.46088429]
[1757743563682,0.18736705,115840.0,115830.0,1.34292]
[1757743564781,0.18736705,115840.0,115830.0,1.46088429]
[1757743566481,0.06940276,115840.0,115830.0,1.43146966]
[1757743566677,0.24650208,115840.0,115830.0,1.43146966]
[1757743574395,0.06940276,115840.0,115830.0,1.43146966]
[1757743574689,0.15795242,115840.0,115830.0,1.52001932]
[1757743575389,0.15795242,115840.0,115830.0,1.34292]
[1757743575589,0.15795242,115840.0,115830.0,1.52001932]
[1757743577691,0.15795242,115840.0,115830.0,0.72989932]
[1757743577990,0.15795242,115840.0,115830.0,1.51969932]
[1757743578787,0.06095059,115840.0,115830.0,1.51969932]
[1757743578994,0.02617059,115840.0,115830.0,2.21904898]
[1757743579186,0.02617059,115840.0,115830.0,2.66904898]
[1757743580190,0.02617059,115840.0,115830.0,2.68646264]
[1757743585292,0.03993059,115840.0,115830.0,1.89666264]
[1757743585600,0.03993059,115840.0,115830.0,2.68566264]
[1757743587801,0.12848025,115840.0,115830.0,1.80811298]
[1757743588000,0.12848025,115840.0,115830.0,2.59683298]
[1757743588194,0.12848025,115840.0,115830.0,2.50828332]
[1757743588494,0.12848025,115840.0,115830.0,2.59683298]
[1757743589504,0.03993059,115840.0,115830.0,2.59683298]
[1757743589700,0.03993059,115840.0,115830.0,2.68538264]
[1757743590102,0.12848025,115840.0,115830.0,2.59683298]
[1757743591604,0.03993059,115840.0,115830.0,2.59683298]
[1757743591808,0.12848025,115840.0,115830.0,2.59683298]
[1757743592308,0.12848025,115840.0,115830.0,2.41973366]
[1757743592608,0.03993059,115840.0,115830.0,2.59683298]
[1757743592906,0.03993059,115840.0,115830.0,2.68538264]
[1757743593607,0.12848025,115840.0,115830.0,2.68538264]
[1757743597110,0.03993059,115840.0,115830.0,2.68538264]
[1757743597706,0.12848025,115840.0,115830.0,2.68538264]
[1757743599517,0.14895472,115840.0,115830.0,1.87623298]
[1757743602915,0.14895472,115840.0,115830.0,1.77623298]
[1757743603115,0.14895472,115840.0,115830.0,1.87623298]
[1757743605115,0.06040506,115840.0,115830.0,1.87623298]
[1757743605318,0.14895472,115840.0,115830.0,1.87623298]
[1757743605919,0.14895472,115840.0,115830.0,1.08811298]
[1757743606120,0.14895472,115840.0,115830.0,1.87567298]
[1757743608720,0.14895472,115840.0,115830.0,1.69857366]
[1757743609021,0.14895472,115840.0,115830.0,1.87567298]
[1757743612924,0.06040506,115840.0,115830.0,1.69857366]
[1757743613125,0.14895472,115840.0,115830.0,1.87567298]
[1757743613328,0.14895472,115840.0,115830.0,1.78712332]
[1757743613824,0.26083438,115840.0,115830.0,0.91101366]
[1757743614025,0.51083438,115840.0,115830.0,0.55021366]
[1757743614326,0.51083438,115840.0,115830.0,1.42564332]
[1757743616324,0.51098132,115840.0,115830.0,1.42564332]
[1757743621426,0.333882,115840.0,115830.0,0.55021366]
[1757743621618,0.59953098,115840.0,115830.0,1.26649366]
[1757743621820,0.51098132,115840.0,115830.0,1.16649366]
[1757743624715,0.51098132,115840.0,115830.0,1.25504332]
[1757743626323,0.51098132,115840.0,115830.0,0.46876332]
[1757743626527,0.51098132,115840.0,115830.0,1.25476332]
[1757743626925,0.51098132,115840.0,115830.0,0.46876332]
[1757743627118,0.51098132,115840.0,115830.0,1.25468332]
[1757743628423,0.45194791,115840.0,115830.0,1.16613366]
[1757743629531,0.45194791,115840.0,115830.0,0.38021366]
[1757743629726,0.45194791,115840.0,115830.0,1.16593366]
[1757743632427,0.57001382,115840.0,115830.0,1.16593366]
[1757743632832,0.45194791,115840.0,115830.0,1.16593366]
[1757743633128,0.45194791,115840.0,115830.0,1.28399957]
[1757743635036,0.45194791,115840.0,115830.0,1.16593366]
[1757743636540,0.45194791,115840.0,115830.0,0.38021366]
[1757743636741,0.57001382,115840.0,115830.0,1.16553366]
[1757743638942,0.45194791,115840.0,115830.0,1.16553366]
[1757743640839,0.45194791,115840.0,115830.0,0.38021366]
[1757743641144,0.57001382,115840.0,115830.0,1.16593366]
[1757743641343,0.6010896,115840.0,115830.0,0.80513366]
[1757743642844,0.57001382,115840.0,115830.0,0.80513366]
[1757743643241,0.333882,115840.0,115830.0,0.80513366]
[1757743643447,0.57001382,115840.0,115830.0,0.80513366]
[1757743647658,0.333882,115840.0,115830.0,0.80513366]
[1757743647957,0.57001382,115840.0,115830.0,0.80513366]
[1757743650860,0.333882,115840.0,115830.0,0.80513366]
[1757743651063,0.57001382,115840.0,115830.0,0.80513366]
[1757743656869,0.6010896,115840.0,115830.0,0.80513366]
[1757743657964,0.57001382,115840.0,115830.0,0.80513366]
[1757743658867,0.333882,115840.0,115830.0,0.80513366]
[1757743659067,0.57001382,115840.0,115830.0,0.80513366]
[1757743659366,0.20194791,115840.0,115830.0,0.80513366]
[1757743661769,0.20194791,115840.0,115830.0,0.01941366]
[1757743661969,0.20194791,115840.0,115830.0,0.80493366]
[1757743662269,0.32001382,115840.0,115830.0,0.80493366]
[1757743668466,0.32001382,115840.0,115830.0,0.01941366]
[1757743668674,0.3510896,115840.0,115830.0,0.80477366]
[1757743671974,0.11495778,115840.0,115830.0,0.80477366]
[1757743672168,0.3510896,115840.0,115830.0,0.80477366]
[1757743672569,0.39770581,115840.0,115830.0,0.80477366]
[1757743674263,0.3510896,115840.0,115830.0,0.80477366]
[1757743674470,0.35111246,115840.0,115830.0,0.80477366]
[1757743675876,0.35111246,115840.0,115830.0,1.16557366]
[1757743676078,0.11498064,115840.0,115830.0,1.16557366]
[1757743676277,0.35111246,115840.0,115830.0,1.16557366]
[1757743676981,0.23304655,115840.0,115830.0,1.28363957]
[1757743678783,0.06057486,115840.0,115830.0,1.53363957]
[1757743678976,0.04681486,115840.0,115830.0,2.22170548]
[1757743679176,0.04681486,115840.0,115830.0,2.10363957]
[1757743683984,0.04681486,115840.0,115830.0,1.98557366]
[1757743684186,0.04681486,115840.0,115830.0,2.10363957]
[1757743690390,0.04681486,115840.0,115830.0,2.25114689]
[1757743692392,0.04681486,115840.0,115830.0,2.61194689]
[1757743702291,0.04681486,115840.0,115830.0,2.59453323]
[1757743706600,0.14864927,115840.0,115830.0,1.80917323]
[1757743706789,0.14864927,115840.0,115830.0,2.50584882]
[1757743707291,0.06012486,115840.0,115830.0,2.50584882]
[1757743707491,0.14864927,115840.0,115830.0,2.50584882]
[1757743709200,0.06012486,115840.0,115830.0,2.50584882]
[1757743709397,0.14864927,115840.0,115830.0,2.50584882]
[1757743709600,0.14864927,115840.0,115830.0,1.78424882]
[1757743709796,0.14864927,115840.0,115830.0,2.50584882]
[1757743709997,0.14864927,115840.0,115830.0,1.72064882]
[1757743710198,0.14864927,115840.0,115830.0,2.50580882]
[1757743710689,0.14864927,115840.0,115830.0,2.59433323]
[1757743715704,0.14864927,115840.0,115830.0,1.80917323]
[1757743715904,0.14864927,115840.0,115830.0,2.59429323]
[1757743716611,0.14864927,115840.0,115830.0,1.80917323]
[1757743716910,0.14864927,115840.0,115830.0,2.59429323]
[1757743719305,0.14864927,115840.0,115830.0,2.34429323]
[1757743719706,0.1281748,115840.0,115830.0,2.34429323]
[1757743721913,0.1281748,115840.0,115830.0,1.55917323]
[1757743722212,0.1281748,115840.0,115830.0,2.25572882]
[1757743722809,0.1281748,115840.0,115830.0,2.34425323]
[1757743723308,0.1281748,115840.0,115830.0,2.25572882]
[1757743725315,0.21669921,115840.0,115830.0,1.2936]
[1757743725615,0.23839921,115840.0,115830.0,1.26636441]
[1757743727713,0.23839921,115840.0,115830.0,0.48132441]
[1757743727917,0.23839921,115840.0,115830.0,1.26636441]
[1757743728217,0.1498748,115840.0,115830.0,1.26636441]
[1757743728913,0.1498748,115840.0,115830.0,0.48132441]
[1757743729121,0.48839921,115840.0,115830.0,1.1478]
[1757743729315,0.31135039,115840.0,115830.0,1.23632441]
[1757743729522,0.57692362,115840.0,115830.0,1.1478]
[1757743730119,0.57692362,115840.0,115830.0,1.23632441]
[1757743730320,0.48839921,115840.0,115830.0,1.23632441]
[1757743730510,0.48839921,115840.0,115830.0,1.1478]
[1757743730709,0.48839921,115840.0,115830.0,1.23632441]
[1757743737528,0.31135039,115840.0,115830.0,1.23632441]
[1757743737729,0.48839921,115840.0,115830.0,1.23632441]
[1757743738324,0.3998748,115840.0,115830.0,1.32484882]
[1757743739221,0.31135039,115840.0,115830.0,1.32484882]
[1757743739425,0.3998748,115840.0,115830.0,1.32484882]
[1757743740433,0.3998748,115840.0,115830.0,1.23632441]
[1757743740626,0.48839921,115840.0,115830.0,1.23632441]
[1757743742720,0.31135039,115840.0,115830.0,1.23632441]
[1757743742924,0.48839921,115840.0,115830.0,1.23632441]
[1757743743430,0.48839921,115840.0,115830.0,0.45132441]
[1757743743730,0.48839921,115840.0,115830.0,1.23620441]
[1757743745132,0.3998748,115840.0,115830.0,1.32472882]
[1757743746537,0.3998748,115840.0,115830.0,1.23620441]
[1757743747032,0.48839921,115840.0,115830.0,1.23620441]
[1757743747533,0.48839921,115840.0,115830.0,0.45132441]
[1757743747733,0.48839921,115840.0,115830.0,1.23616441]
[1757743750032,0.31135039,115840.0,115830.0,1.23616441]
[1757743750235,0.48839921,115840.0,115830.0,1.23616441]
[1757743752331,0.42941044,115840.0,115830.0,1.26570005]
[1757743753234,0.42941044,115840.0,115830.0,0.48086005]
[1757743753538,0.42941044,115840.0,115830.0,1.26566005]
[1757743754940,0.42941044,115840.0,115830.0,1.1476]
[1757743759650,0.42941044,115840.0,115830.0,1.14752]
[1757743759943,0.31135039,115840.0,115830.0,1.14752]
[1757743760148,0.06135039,115840.0,115830.0,1.26558005]
[1757743764352,0.03965039,115840.0,115830.0,1.26558005]
[1757743767545,0.15771044,115840.0,115830.0,1.26558005]
[1757743768058,0.18035044,115840.0,115830.0,0.48086005]
[1757743768550,0.18035044,115840.0,115830.0,1.26554005]
[1757743769748,0.18035044,115840.0,115830.0,1.14748]
[1757743769952,0.18035044,115840.0,115830.0,1.26554005]
[1757743770554,0.18035044,115840.0,115830.0,1.14748]
[1757743770754,0.18035044,115840.0,115830.0,0.48086005]
[1757743770954,0.18035044,115840.0,115830.0,1.26550005]
[1757743773553,0.06229039,115840.0,115830.0,1.26550005]
[1757743773759,0.18035044,115840.0,115830.0,1.26550005]
[1757743775059,0.29841049,115840.0,115830.0,0.3628]
[1757743775261,0.29841049,115840.0,115830.0,0.78664]
[1757743775658,0.18035044,115840.0,115830.0,0.78664]
[1757743775963,0.18035044,115840.0,115830.0,0.3628]
[1757743776154,0.06229039,115840.0,115830.0,1.1474]
[1757743776355,0.18035044,115840.0,115830.0,1.1474]
[1757743778663,0.18035044,115840.0,115830.0,1.26546005]
[1757743778960,0.18035044,115840.0,115830.0,1.1474]
[1757743779460,0.18035044,115840.0,115830.0,1.14736]
[1757743780167,0.18035044,115840.0,115830.0,0.78656]
[1757743780364,0.18035044,115840.0,115830.0,1.14736]
[1757743781265,0.29841049,115840.0,115830.0,1.14736]
[1757743781859,0.29841049,115840.0,115830.0,0.3628]
[1757743782067,0.32948627,115840.0,115830.0,0.78652]
[1757743782260,0.57948627,115840.0,115830.0,0.78652]
[1757743784370,0.54841049,115840.0,115830.0,0.78652]
[1757743785659,0.31229039,115840.0,115830.0,0.78652]
[1757743785856,0.54841049,115840.0,115830.0,0.78652]
[1757743788370,0.54841049,115840.0,115830.0,0.002]
[1757743788565,0.94028627,115840.0,115830.0,0.78652]
[1757743791374,0.91394588,115840.0,115830.0,0.78652]
[1757743791566,0.94012258,115840.0,115830.0,0.78652]
[1757743794975,0.94012258,115840.0,115830.0,0.002]
[1757743795180,0.94012258,115840.0,115830.0,0.78644]
[1757743797976,0.91394588,115840.0,115830.0,0.78644]
[1757743798180,0.94011839,115840.0,115830.0,0.78644]
[1757743801680,0.94011839,115840.0,115830.0,0.002]
[1757743801976,0.7367346,115840.0,115830.0,0.75012]
[1757743802574,0.7367346,115840.0,115830.0,0.002]
[1757743802779,0.7367346,115840.0,115830.0,0.60656]
[1757743803675,0.85479465,115840.0,115830.0,0.002]
[1757743803876,0.94011839,115840.0,115830.0,0.7864]
[1757743805883,1.02004839,115840.0,115830.0,0.7864]
[1757743808982,1.02004839,115840.0,115830.0,0.002]
[1757743809183,1.0666646,115840.0,115830.0,0.78636]
[1757743809382,1.02004839,115840.0,115830.0,0.78636]
[1757743810189,1.02004839,115840.0,115830.0,0.002]
[1757743810382,1.0666646,115840.0,115830.0,0.60652]
[1757743810880,1.02004839,115840.0,115830.0,0.60652]
[1757743811282,1.02004839,115840.0,115830.0,0.002]
[1757743811581,1.02004839,115840.0,115830.0,0.78632]
[1757743812383,1.04966787,115840.0,115830.0,0.78632]
[1757743812780,1.0652083,115840.0,115830.0,0.002]
[1757743812984,0.03669,115810.0,115800.0,2.44228]
[1757743813185,0.34906819,115810.0,115800.0,2.44228]
[1757743814279,0.41742199,115810.0,115800.0,2.44428]
[1757743814786,0.42623926,115810.0,115800.0,2.44428]
[1757743815486,0.42623926,115810.0,115800.0,2.44728]
[1757743816081,0.3376594,115810.0,115800.0,2.44728]